fUST/lending_fUST_20240805
["ID","MTS","AMOUNT","RATE_DAILY","PERIOD"]
[334227709,1722846638385,-160.54991199,0.00026848,2]
[334227710,1722846638394,-881.47696693,0.00026848,2]
[334227711,1722846638403,-22965.18138677,0.0002799,5]
[334227712,1722846638413,-15787.5893903,0.00028,120]
[334227713,1722846638422,-255.16860493,0.000286,120]
[334227714,1722846638432,-10121.7186659,0.00029814,3]
[334227715,1722846638441,-96602.81866262,0.00029844,7]
[334227716,1722846638450,-487.49613267,0.00029844,60]
[334227717,1722846638459,-1418.8,0.00029844,120]
[334227718,1722846638469,-1813.87,0.00029844,120]
[334227719,1722846638478,-280.64645346,0.00029844,120]
[334227720,1722846638488,-208.79532197,0.00029986,2]
[334227721,1722846638498,-193.5411241,0.000336,31]
[334227722,1722846638516,-433.04,0.000336,31]
[334227723,1722846638527,-433.04,0.000336,31]
[334227724,1722846638536,-433.04,0.000336,31]
[334227725,1722846638546,-433.04,0.000336,31]
[334227726,1722846638556,-433.04,0.000336,31]
[334227727,1722846638566,-284.83809153,0.000336,3]
[334227728,1722846638575,-208.79532197,0.00033722,2]
[334227729,1722846638585,-503.01738548,0.00035,120]
[334227730,1722846638594,-4135.19420899,0.00035,120]
[334227731,1722846638611,-10000.0,0.000355,20]
[334227732,1722846638631,-15032.72,0.00035616,3]
[334227733,1722846638648,-150.0,0.00035643,2]
[334227734,1722846638669,-581.305,0.00035643,2]
[334227735,1722846638689,-10000.0,0.000365,25]
[334227736,1722846638707,-2025.363561,0.0003653,120]
[334227737,1722846638727,-30365.1559977,0.00036786,4]
[334227738,1722846638741,-216.93254513,0.00036796,2]
[334227739,1722846638766,-31453.82819743,0.00036796,4]
[334227740,1722846638785,-10000.0,0.00037,25]
[334227741,1722846638807,-433.04,0.000371,31]
[334227742,1722846638822,-433.04,0.000371,31]
[334227743,1722846638837,-433.04,0.000371,31]
[334227744,1722846638854,-433.04,0.000371,31]
[334227745,1722846638870,-433.04,0.000371,31]
[334227746,1722846638886,-433.04,0.000371,31]
[334227747,1722846638899,-433.04,0.000371,31]
[334227748,1722846638915,-433.04,0.000371,31]
[334227749,1722846638932,-433.04,0.000371,31]
[334227750,1722846638947,-433.04,0.000371,31]
[334227751,1722846638964,-433.04,0.000371,31]
[334227752,1722846638979,-433.04,0.000371,31]
[334227753,1722846638996,-433.04,0.000371,31]
[334227754,1722846639016,-433.04,0.000371,31]
[334227755,1722846639031,-433.04,0.000371,31]
[334227756,1722846639046,-433.04,0.000371,31]
[334227757,1722846639061,-433.04,0.000371,31]
[334227758,1722846639075,-433.04,0.000371,31]
[334227759,1722846639090,-433.04,0.000371,31]
[334227760,1722846639104,-433.04,0.000371,31]
[334227761,1722846639119,-208.79532197,0.00037459,2]
[334227762,1722846639133,-10121.7186659,0.0003749,4]
[334227763,1722846639148,-10000.0,0.000375,30]
[334227764,1722846639163,-324.89253465,0.00037502,2]
[334227765,1722846639178,-10000.0,0.00038,31]
[334227766,1722846639193,-375.055056,0.00038,7]
[334227767,1722846639208,-375.055056,0.00038,7]
[334227769,1722846639223,-151.0,0.00038302,15]
[334227770,1722846639238,-10000.0,0.000385,35]
[334227771,1722846639253,-155.680576,0.000385,14]
[334227772,1722846639275,-155.680576,0.000385,14]
[334227773,1722846639290,-150.0,0.00038643,2]
[334227774,1722846639305,-507.0,0.00038643,2]
[334227775,1722846639319,-168.105178,0.00038748,2]
[334227777,1722846639335,-157.779418,0.00038795,2]
[334227779,1722846639349,-10000.0,0.00039,35]
[334227780,1722846639365,-10121.7186659,0.0003949,5]
[334227781,1722846639379,-10000.0,0.000395,35]
[334227782,1722846639395,-151.0,0.000395,14]
[334227783,1722846639411,-151.0,0.000395,14]
[334227784,1722846639425,-151.0,0.000395,14]
[334227786,1722846639548,-182.141029,0.000395,14]
[334227787,1722846639567,-151.0,0.000395,14]
[334227788,1722846639577,-151.0,0.000395,14]
[334227789,1722846639588,-151.0,0.000395,14]
[334227790,1722846639597,-953.416351,0.000395,14]
[334227791,1722846639607,-953.416351,0.000395,14]
[334227792,1722846639617,-10225.15,0.000398,120]
[334227793,1722846639626,-151.0,0.000398,14]
[334227794,1722846639636,-1018.765471,0.000398,14]
[334227795,1722846639645,-1018.765471,0.000398,14]
[334227796,1722846639655,-881.842617,0.000398,14]
[334227797,1722846639664,-402.568735,0.000398,14]
[334227798,1722846639673,-402.568735,0.000398,14]
[334227799,1722846639683,-881.842617,0.000398,14]
[334227800,1722846639692,-511.444354,0.000398,14]
[334227801,1722846639701,-151.0,0.000398,14]
[334227802,1722846639711,-511.444354,0.000398,14]
[334227803,1722846639720,-263.425103,0.000398,14]
[334227804,1722846639729,-263.425103,0.000398,14]
[334227805,1722846639738,-287.46261,0.000398,14]
[334227806,1722846639748,-287.46261,0.000398,14]
[334227807,1722846639762,-603.360278,0.000398,14]
[334227808,1722846639774,-603.360278,0.000398,14]
[334227810,1722846639786,-10121.7186659,0.0003999,5]
[334227811,1722846639796,-10000.0,0.0004,40]
[334227812,1722846639806,-3002.514406,0.0004,120]
[334227813,1722846639816,-917.818849,0.0004,14]
[334227814,1722846639828,-917.818849,0.0004,14]
[334227815,1722846639837,-151.0,0.0004,14]
[334227816,1722846639848,-170.649318,0.0004,14]
[334227817,1722846639858,-151.0,0.0004,14]
[334227818,1722846639867,-170.649318,0.0004,14]
[334227819,1722846639878,-2163.954253,0.0004,14]
[334227820,1722846639891,-151.0,0.0004,14]
[334227821,1722846639909,-7412.17596623,0.0004,30]
[334227822,1722846639926,-200.0,0.0004,2]
[334227823,1722846639937,-70852.0306614,0.0004019,5]
[334227824,1722846639946,-300047.20767427,0.000402,120]
[334227825,1722846639959,-151.0,0.000402,14]
[334227826,1722846639969,-151.0,0.000402,14]
[334227827,1722846639978,-151.0,0.000402,14]
[334227828,1722846639988,-151.0,0.000402,14]
[334227830,1722846639998,-300.0,0.000402,30]
[334227831,1722846640011,-300.0,0.000402,30]
[334227832,1722846640022,-300.0,0.000402,30]
[334227833,1722846640032,-300.0,0.000402,30]
[334227834,1722846640042,-300.0,0.000402,30]
[334227836,1722846640054,-300.0,0.000402,30]
[334227838,1722846640064,-300.0,0.000402,30]
[334227840,1722846640079,-300.0,0.000402,30]
[334227842,1722846640089,-300.0,0.000402,30]
[334227845,1722846640099,-300.0,0.000402,30]
[334227848,1722846640110,-300.0,0.000402,30]
[334227849,1722846640120,-300.0,0.000402,30]
[334227852,1722846640130,-300.0,0.000402,30]
[334227853,1722846640140,-300.0,0.000402,30]
[334227855,1722846640150,-300.0,0.000402,30]
[334227857,1722846640160,-300.0,0.000402,30]
[334227859,1722846640169,-300.0,0.000402,30]
[334227862,1722846640180,-300.0,0.000402,30]
[334227863,1722846640189,-300.0,0.000402,30]
[334227865,1722846640199,-319.668356,0.000402,30]
[334227867,1722846640209,-151.0,0.000402,14]
[334227870,1722846640218,-153.663288,0.000402,14]
[334227872,1722846640228,-151.0,0.000402,14]
[334227874,1722846640238,-151.0,0.000402,14]
[334227876,1722846640248,-157.722398,0.000402,14]
[334227878,1722846640263,-155.680576,0.000402,14]
[334227880,1722846640273,-155.680576,0.000402,14]
[334227881,1722846640282,-151.0,0.000402,14]
[334227884,1722846640292,-151.0,0.000402,14]
[334227886,1722846640303,-151.0,0.000402,2]
[334227888,1722846640313,-917.818849,0.000402,14]
[334227890,1722846640323,-917.818849,0.000402,14]
[334227892,1722846640332,-151.0,0.000402,14]
[334227893,1722846640341,-170.649318,0.000402,14]
[334227895,1722846640351,-151.0,0.000402,14]
[334227897,1722846640361,-170.649318,0.000402,14]
[334227899,1722846640370,-2163.954253,0.000402,14]
[334227901,1722846640380,-151.0,0.000402,14]
[334227903,1722846640389,-375.055056,0.000402,14]
[334227905,1722846640399,-375.055056,0.000402,14]
[334227907,1722846640409,-155.644938,0.000402,14]
[334227909,1722846640418,-151.0,0.000402,14]
[334227911,1722846640427,-953.416351,0.000402,14]
[334227913,1722846640437,-953.416351,0.000402,14]
[334227915,1722846640448,-1018.765471,0.000402,14]
[334227917,1722846640457,-1018.765471,0.000402,14]
[334227919,1722846640466,-881.842617,0.000402,14]
[334227921,1722846640477,-402.568735,0.000402,14]
[334227922,1722846640486,-402.568735,0.000402,14]
[334227923,1722846640496,-881.842617,0.000402,14]
[334227924,1722846640507,-511.444354,0.000402,14]
[334227925,1722846640525,-151.0,0.000402,14]
[334227926,1722846640534,-263.425103,0.000402,14]
[334227927,1722846640543,-511.444354,0.000402,14]
[334227928,1722846640553,-263.425103,0.000402,14]
[334227929,1722846640563,-287.46261,0.000402,14]
[334227930,1722846640572,-5692.01,0.000402,14]
[334227931,1722846640582,-157.803525,0.000402,14]
[334227932,1722846640592,-287.46261,0.000402,14]
[334227933,1722846640601,-157.803525,0.000402,14]
[334227934,1722846640610,-223.59,0.000402,14]
[334227935,1722846640619,-603.360278,0.000402,14]
[334227936,1722846640629,-603.360278,0.000402,14]
[334227937,1722846640638,-230.29,0.000402,30]
[334227938,1722846640648,-483.027942,0.000402,14]
[334227939,1722846640657,-483.027942,0.000402,14]
[334227940,1722846640667,-151.0,0.000402,14]
[334227941,1722846640678,-151.0,0.000402,14]
[334227942,1722846640687,-151.0,0.000402,14]
[334227943,1722846640697,-151.0,0.000402,14]
[334227945,1722846640706,-151.0,0.000402,14]
[334227946,1722846640716,-151.0,0.000402,14]
[334227947,1722846640726,-151.0,0.000402,14]
[334227948,1722846640736,-263.267708,0.000402,14]
[334227949,1722846640745,-263.267708,0.000402,14]
[334227950,1722846640754,-263.267708,0.000402,14]
[334227951,1722846640770,-263.267708,0.000402,14]
[334227953,1722846640779,-151.0,0.00040363,15]
[334227955,1722846640789,-151.0,0.00040363,15]
[334227957,1722846640799,-154.64261285,0.00040397,54]
[334227959,1722846640809,-10121.7186659,0.0004049,5]
[334227961,1722846640820,-200.0,0.000405,2]
[334227971,1722846640897,-10000.0,0.000405,45]
[334227973,1722846640907,-433.04,0.000406,31]
[334227974,1722846640916,-433.04,0.000406,31]
[334227976,1722846640925,-433.04,0.000406,31]
[334227978,1722846640934,-433.04,0.000406,31]
[334227980,1722846640943,-433.04,0.000406,31]
[334227982,1722846640953,-433.04,0.000406,31]
[334227984,1722846640962,-433.04,0.000406,31]
[334227986,1722846640974,-433.04,0.000406,31]
[334227988,1722846640983,-433.04,0.000406,31]
[334227990,1722846640992,-433.04,0.000406,31]
[334227992,1722846641002,-433.04,0.000406,31]
[334227994,1722846641019,-433.04,0.000406,31]
[334227996,1722846641029,-433.04,0.000406,31]
[334227998,1722846641039,-433.04,0.000406,31]
[334228001,1722846641050,-433.04,0.000406,31]
[334228003,1722846641059,-433.04,0.000406,31]
[334228005,1722846641068,-433.04,0.000406,31]
[334228007,1722846641077,-433.04,0.000406,31]
[334228009,1722846641088,-433.04,0.000406,31]
[334228011,1722846641099,-433.04,0.000406,31]
[334228013,1722846641110,-2000.0,0.000407,30]
[334228015,1722846641119,-10225.15,0.000407,120]
[334228017,1722846641129,-955.0,0.000407,30]
[334228019,1722846641138,-324.89253465,0.00040704,2]
[334228021,1722846641147,-232.04929669,0.00040727,4]
[334228023,1722846641156,-41668.58539449,0.000408,30]
[334228150,1722846642231,-66373.889609,0.000408,30]
[334228153,1722846642243,-15497.08954755,0.000408,30]
[334228156,1722846642254,-4999.97115,0.000408,30]
[334228165,1722846642293,-2139.16821494,0.00021906,2]
[334228167,1722846642302,-4510.54247595,0.000408,30]
[334228169,1722846642314,-391095.46352941,0.000408,30]
[334228171,1722846642326,-359.50100004,0.000408,30]
[334228174,1722846642338,-368.31035025,0.000408,30]
[334228251,1722846643660,-2124.51614001,0.00021642,2]
[334228252,1722846643669,-24308.05438529,0.00021642,2]
[334228253,1722846643681,-6057.6610635,0.00021642,2]
[334228254,1722846643692,-11975.99846257,0.00021642,2]
[334228255,1722846643702,-500.0,0.00021804,2]
[334228256,1722846643712,-500.0,0.00021804,2]
[334228257,1722846643721,-346.88853336,0.00021804,2]
[334228258,1722846643731,-500.0,0.00021804,2]
[334228259,1722846643742,-500.0,0.00021804,2]
[334228260,1722846643752,-500.0,0.00021804,2]
[334228261,1722846643764,-500.0,0.00021804,2]
[334228262,1722846643774,-7001.77703298,0.00021906,2]
[334228263,1722846643784,-547.459921,0.000402,14]
[334228264,1722846643794,-70225.15123753,0.000408,30]
[334228265,1722846643804,-154.72922386,0.000408,4]
[334228266,1722846643815,-16337.0,0.000408,53]
[334228267,1722846643825,-587.44293941,0.000408,120]
[334228268,1722846643834,-257.42249911,0.000408,30]
[334228269,1722846643844,-401.99788057,0.000409,62]
[334228270,1722846643853,-10121.7186659,0.0004099,5]
[334228271,1722846643863,-191.540489,0.00040999,2]
[334228272,1722846643872,-500000.0,0.00041,30]
[334228273,1722846643881,-1000.0,0.00041,41]
[334228274,1722846643891,-10000.0,0.00041,50]
[334228275,1722846643901,-1030.05,0.00041,70]
[334228276,1722846643911,-5112.574999,0.00041,120]
[334228277,1722846643920,-329.0,0.00041,14]
[334228278,1722846643930,-152.0,0.00041041,31]
[334228279,1722846643940,-152.0,0.00041041,31]
[334228280,1722846643949,-40486.8746636,0.00041085,5]
[334228281,1722846643961,-2039.6,0.00041095,31]
[334228282,1722846643973,-500.0,0.00041095,31]
[334228283,1722846643983,-643.77216218,0.00041095,31]
[334228284,1722846643993,-500.0,0.00041095,31]
[334228285,1722846644003,-500.0,0.00041095,31]
[334228286,1722846644019,-507.21254834,0.00041095,31]
[334228287,1722846644028,-500.0,0.00041095,31]
[334228288,1722846644037,-327.36842328,0.00041095,31]
[334228289,1722846644048,-500.0,0.00041095,31]
[334228290,1722846644058,-500.0,0.00041095,31]
[334228291,1722846644068,-500.0,0.00041095,31]
[334228292,1722846644077,-500.0,0.00041095,31]
[334228293,1722846644086,-500.0,0.00041095,31]
[334228294,1722846644095,-500.0,0.00041095,31]
[334228295,1722846644104,-499.95657191,0.00041095,3]
[334228296,1722846644114,-500.0,0.00041095,31]
[334228297,1722846644124,-520.82692653,0.00041095,31]
[334228298,1722846644134,-500.0,0.00041095,30]
[334228299,1722846644144,-500.0,0.00041095,31]
[334228300,1722846644153,-500.0,0.00041095,31]
[334228301,1722846644163,-516.68982005,0.00041095,31]
[334228302,1722846644289,-500.0,0.00041095,31]
[334228303,1722846644300,-500.0,0.00041095,31]
[334228304,1722846644309,-500.0,0.00041095,31]
[334228305,1722846644319,-2534.94624561,0.00041095,120]
[334228307,1722846644328,-500.0,0.00041095,31]
[334228308,1722846644337,-500.0,0.00041095,31]
[334228310,1722846644346,-500.40038561,0.00041095,31]
[334228311,1722846644356,-500.0,0.00041095,31]
[334228312,1722846644366,-500.0,0.00041095,31]
[334228314,1722846644375,-500.0,0.00041095,31]
[334228315,1722846644385,-500.0,0.00041095,31]
[334228316,1722846644395,-500.0,0.00041095,31]
[334228317,1722846644405,-500.0,0.00041095,31]
[334228318,1722846644414,-500.0,0.00041095,31]
[334228319,1722846644423,-500.0,0.00041095,31]
[334228320,1722846644434,-501.13268625,0.00041095,31]
[334228321,1722846644443,-500.0,0.00041095,31]
[334228322,1722846644456,-500.0,0.00041095,31]
[334228323,1722846644465,-500.0,0.00041095,31]
[334228324,1722846644475,-500.0,0.00041095,31]
[334228325,1722846644484,-500.0,0.00041095,31]
[334228326,1722846644494,-500.0,0.00041095,31]
[334228327,1722846644504,-177.33813632,0.00041095,31]
[334228328,1722846644521,-500.0,0.00041095,31]
[334228329,1722846644531,-1308.02,0.00041095,31]
[334228330,1722846644541,-500.0,0.00041095,31]
[334228331,1722846644551,-500.0,0.00041095,31]
[334228332,1722846644560,-500.0,0.00041095,31]
[334228333,1722846644570,-500.0,0.00041095,31]
[334228334,1722846644580,-500.0,0.00041095,31]
[334228335,1722846644590,-500.0,0.00041095,31]
[334228336,1722846644599,-500.0,0.00041095,31]
[334228337,1722846644609,-500.0,0.00041095,31]
[334228338,1722846644619,-500.0,0.00041095,31]
[334228339,1722846644629,-500.0,0.00041095,31]
[334228340,1722846644639,-417.0860992,0.00041095,31]
[334228341,1722846644650,-500.0,0.00041095,31]
[334228342,1722846644660,-500.0,0.00041095,31]
[334228343,1722846644670,-500.0,0.00041095,31]
[334228345,1722846644679,-1502.39,0.00041095,31]
[334228347,1722846644689,-500.0,0.00041095,31]
[334228349,1722846644698,-500.0,0.00041095,31]
[334228351,1722846644708,-500.0,0.00041095,31]
[334228353,1722846644717,-500.0,0.00041095,31]
[334228354,1722846644727,-500.0,0.00041095,31]
[334228355,1722846644736,-501.17866054,0.00041095,31]
[334228356,1722846644745,-592.42,0.00041095,31]
[334228357,1722846644755,-500.0,0.00041095,31]
[334228358,1722846644768,-500.0,0.00041095,31]
[334228359,1722846644778,-642.74,0.00041095,31]
[334228360,1722846644787,-500.0,0.00041095,31]
[334228361,1722846644796,-556.85,0.00041095,31]
[334228362,1722846644806,-501.90243565,0.00041095,31]
[334228363,1722846644815,-500.0,0.00041095,31]
[334228364,1722846644824,-500.0,0.00041095,31]
[334228365,1722846644833,-500.0,0.00041095,31]
[334228366,1722846644842,-500.0,0.00041095,31]
[334228367,1722846644852,-500.0,0.00041095,31]
[334228368,1722846644861,-500.0,0.00041095,31]
[334228369,1722846644870,-500.0,0.00041095,31]
[334228370,1722846644879,-500.0,0.00041095,31]
[334228371,1722846644888,-500.0,0.00041095,31]
[334228372,1722846644897,-500.0,0.00041095,31]
[334228373,1722846644907,-500.0,0.00041095,31]
[334228374,1722846644916,-500.0,0.00041095,31]
[334228375,1722846644925,-500.0,0.00041095,31]
[334228376,1722846644934,-500.0,0.00041095,31]
[334228377,1722846644943,-500.0,0.00041095,31]
[334228378,1722846644954,-500.0,0.00041095,31]
[334228379,1722846644963,-350.69818167,0.00041095,31]
[334228380,1722846644976,-500.0,0.00041095,31]
[334228381,1722846644986,-500.0,0.00041095,31]
[334228382,1722846644995,-500.0,0.00041095,20]
[334228383,1722846645006,-500.0,0.00041095,10]
[334228384,1722846645027,-500.0,0.00041095,31]
[334228385,1722846645036,-236.55346111,0.00041095,31]
[334228386,1722846645047,-500.0,0.00041095,31]
[334228387,1722846645056,-500.0,0.00041095,31]
[334228388,1722846645066,-500.0,0.00041095,31]
[334228389,1722846645075,-500.0,0.00041095,31]
[334228390,1722846645084,-410.73128566,0.00041095,31]
[334228391,1722846645093,-500.0,0.00041095,31]
[334228392,1722846645102,-500.0,0.00041095,31]
[334228393,1722846645111,-500.0,0.00041095,31]
[334228394,1722846645120,-500.0,0.00041095,31]
[334228395,1722846645130,-495.31326412,0.00041095,31]
[334228396,1722846645139,-500.0,0.00041095,31]
[334228398,1722846645148,-500.0,0.00041095,31]
[334228399,1722846645157,-112.87948932,0.00041095,31]
[334228409,1722846645650,-387.12051068,0.00041095,31]
[334228410,1722846645661,-500.0,0.00041095,31]
[334228412,1722846645672,-500.0,0.00041095,31]
[334228413,1722846645686,-500.0,0.00041095,31]
[334228414,1722846645699,-500.0,0.00041095,31]
[334228415,1722846645710,-500.0,0.00041095,31]
[334228416,1722846645722,-500.0,0.00041095,31]
[334228417,1722846645734,-500.0,0.00041095,31]
[334228418,1722846645746,-328.17737835,0.00041095,31]
[334228419,1722846645761,-500.0,0.00041095,31]
[334228420,1722846645773,-500.0,0.00041095,31]
[334228421,1722846645785,-500.0,0.00041095,31]
[334228422,1722846645797,-500.0,0.00041095,31]
[334228423,1722846645810,-500.0,0.00041095,31]
[334228424,1722846645822,-500.0,0.00041095,31]
[334228425,1722846645835,-500.0,0.00041095,31]
[334228426,1722846645848,-518.91073501,0.00041095,31]
[334228427,1722846645860,-440.78031759,0.00041095,31]
[334228428,1722846645873,-348.02151743,0.00041095,31]
[334228429,1722846645889,-176.91767504,0.00041095,31]
[334228430,1722846645902,-500.0,0.00041095,31]
[334228431,1722846645913,-500.0,0.00041095,31]
[334228432,1722846645927,-729.16,0.00041095,31]
[334228433,1722846645939,-500.0,0.00041095,31]
[334228434,1722846645951,-500.0,0.00041095,31]
[334228435,1722846645965,-500.0,0.00041095,31]
[334228436,1722846645980,-500.0,0.00041095,31]
[334228437,1722846645992,-500.0,0.00041095,31]
[334228438,1722846646005,-500.0,0.00041095,31]
[334228439,1722846646020,-49.06444253,0.00041095,31]
[334228440,1722846646085,-277.18370616,0.00021642,2]
[334228441,1722846646096,-12002.89248318,0.00036796,4]
[334228506,1722847832244,-158.30614,0.00014247,2]
[334228508,1722847832254,-174.03821,0.00014247,2]
[334228509,1722847832263,-348.83634601,0.00017244,2]
[334228513,1722847832314,-10514.9,0.00017244,2]
[334228609,1722847838077,-9986.1814,0.00017244,2]
[334228612,1722847838089,-4050.08225399,0.00017244,2]
[334228614,1722847838099,-158.023282,0.00017936,2]
[334228616,1722847838108,-3000.0,0.00017988,2]
[334228618,1722847838117,-158.023282,0.00017991,2]
[334228620,1722847838127,-158.023282,0.00018046,2]
[334228622,1722847838136,-300.0,0.00018074,2]
[334228624,1722847838146,-158.023282,0.00018101,2]
[334228626,1722847838156,-158.023282,0.00018156,2]
[334228628,1722847838165,-158.023282,0.00018211,2]
[334228630,1722847838175,-158.023282,0.00018266,2]
[334228632,1722847838189,-158.023282,0.00018321,2]
[334228635,1722847838199,-158.023282,0.00018376,2]
[334228637,1722847838208,-158.023282,0.00018431,2]
[334228640,1722847838217,-158.023282,0.00018486,2]
[334228641,1722847838227,-158.023282,0.00018541,2]
[334228643,1722847838237,-158.023282,0.00018596,2]
[334228646,1722847838248,-158.023282,0.00018651,2]
[334228648,1722847838258,-158.023282,0.00018706,2]
[334228650,1722847838267,-158.023282,0.00018761,2]
[334228652,1722847838277,-158.023282,0.00018816,2]
[334228654,1722847838286,-158.023282,0.00018871,2]
[334228656,1722847838295,-339.29239827,0.00018918,2]
[334228658,1722847838305,-2162.60520141,0.00018999,2]
[334228660,1722847838314,-42341.71391136,0.00018999,2]
[334228662,1722847838323,-20759.5327798,0.00018999,2]
[334228664,1722847838333,-1000.0,0.00019,19]
[334228666,1722847838342,-250.0,0.00019041,2]
[334228668,1722847838355,-7775.14481469,0.00019102,2]
[334228670,1722847838364,-1643.15842058,0.00019139,7]
[334228672,1722847838374,-1162.86940617,0.00019147,2]
[334228674,1722847838383,-1794.59755427,0.00019155,2]
[334228676,1722847838392,-21720.2472667,0.00019167,2]
[334228678,1722847838402,-9642.56191171,0.00019167,2]
[334228680,1722847838410,-1382.92970052,0.00019167,2]
[334228682,1722847838420,-277.18370616,0.00019167,2]
[334228684,1722847838435,-2278.204521,0.00019167,3]
[334228686,1722847838444,-7001.77703298,0.00019167,2]
[334228688,1722847838454,-1438.29474334,0.00019177,2]
[334228690,1722847838463,-3087.63872233,0.00019177,2]
[334228692,1722847838473,-1610.68802731,0.00019177,2]
[334228694,1722847838483,-172.9148,0.00019178,2]
[334228696,1722847838493,-168.014997,0.00019178,2]
[334228698,1722847838502,-1610.68802731,0.00019256,2]
[334228699,1722847838511,-1715.68394884,0.00019451,2]
[334228702,1722847838521,-1991.65402436,0.00019451,2]
[334228704,1722847838531,-240.82219567,0.00019451,2]
[334228705,1722847838541,-1500.0,0.00019477,2]
[334228707,1722847838550,-420.0,0.00019882,2]
[334228709,1722847838560,-636.10530317,0.00019899,2]
[334228711,1722847838569,-1091.57771247,0.00019999,2]
[334228713,1722847838579,-156.35315554,0.0002,2]
[334228716,1722847838588,-1392.59479936,0.0002,2]
[334228718,1722847838598,-1632.70804043,0.0002,2]
[334228719,1722847838607,-294.09032939,0.0002,2]
[334228721,1722847838616,-1763.49757797,0.0002028,2]
[334228723,1722847838626,-154.83742071,0.0002028,2]
[334228726,1722847838635,-1108.76834352,0.0002028,2]
[334228728,1722847838644,-426.9441554,0.0002028,2]
[334228730,1722847838654,-500.0,0.00020988,2]
[334228732,1722847838663,-232.6828665,0.00020988,2]
[334228734,1722847838673,-500.0,0.00020988,2]
[334228736,1722847838688,-500.0,0.00020988,2]
[334228738,1722847838697,-500.0,0.00020988,2]
[334228740,1722847838707,-500.0,0.00020988,2]
[334228742,1722847838716,-500.0,0.00020988,2]
[334228744,1722847838725,-500.0,0.00020988,2]
[334228746,1722847838734,-309.17534481,0.00020988,2]
[334228748,1722847838744,-500.0,0.00020988,2]
[334228750,1722847838754,-500.0,0.00020988,2]
[334228751,1722847838763,-500.0,0.00020988,2]
[334228754,1722847838772,-21720.2472667,0.00020989,3]
[334228755,1722847838782,-150.0,0.00021,2]
[334228758,1722847838791,-1000.0,0.00021,21]
[334228760,1722847838802,-100000.0,0.00021011,2]
[334228762,1722847838812,-2139.16821494,0.00021048,2]
[334228764,1722847838822,-43440.4945335,0.00021522,3]
[334228765,1722847838831,-2124.51614001,0.00021532,2]
[334228768,1722847838841,-21904.53468543,0.00021532,2]
[334228770,1722847838852,-1363.34392567,0.00021542,2]
[334228772,1722847838861,-318.09201942,0.00021542,2]
[334228774,1722847838870,-156.02963346,0.00021542,2]
[334228776,1722847838880,-305.42819777,0.00021542,2]
[334228778,1722847838889,-154.80649189,0.00021542,2]
[334228780,1722847838899,-163.08091826,0.00021542,2]
[334228782,1722847838909,-21720.2472667,0.00021589,3]
[334228784,1722847838918,-342.05014288,0.00021589,2]
[334228786,1722847838930,-250.03321412,0.00021589,2]
[334228788,1722847838940,-519.59956575,0.00021589,2]
[334228790,1722847838950,-35012.4181319,0.00021589,2]
[334228792,1722847838960,-154.80649189,0.00021589,2]
[334228794,1722847838970,-165.53506923,0.00021589,2]